[Event "Titled Tuesday Blitz January 03 Early 2023"]
[White "Bommini, Mounika Akshaya"]
[Black "Krienke, Makaio"]
[WhiteFideId "25019872"]
[BlackFideId "2038854"]
[WhiteElo "2118"]
[BlackElo "2115"]
[Result "0-1"]
[Round "06"]
[TimeControl "180+2"]
[Date "2023.01.03"]
[WhiteClock "0:02:12"]
[BlackClock "0:02:12"]

1. d4 {[%clk 0:03:00]}  Nf6 {[%clk 0:02:59]} 2. c4 {[%clk 0:02:58]}  e6 {[%clk 0:03:00]} 3. Nc3 {[%clk 0:02:58]}  d5 {[%clk 0:03:00]} 4. cxd5 {[%clk 0:02:58]}  exd5 {[%clk 0:03:01]} 5. Bg5 {[%clk 0:02:58]}  Be7 {[%clk 0:03:01]} 6. e3 {[%clk 0:02:59]}  h6 {[%clk 0:03:02]} 7. Bd3 {[%clk 0:02:59]}  hxg5 {[%clk 0:03:01]} 8. Nf3 {[%clk 0:02:55]}  g4 {[%clk 0:03:01]} 9. Ne5 {[%clk 0:02:52]}  c6 {[%clk 0:02:58]} 10. f3 {[%clk 0:02:47]}  g3 {[%clk 0:02:50]} 11. h3 {[%clk 0:02:42]}  Nbd7 {[%clk 0:02:48]} 12. f4 {[%clk 0:02:41]}  Qa5 {[%clk 0:02:38]} 13. Qf3 {[%clk 0:02:27]}  Ne4 {[%clk 0:02:14]} 14. Bxe4 {[%clk 0:02:15]}  dxe4 {[%clk 0:02:15]} 15. Qg4 {[%clk 0:02:12]}  Nxe5 {[%clk 0:02:12]} 16. Qxg7 {[%clk 0:02:12]}  Ng6 {[%clk 0:02:12]} 0-1


[Site "https://www.chess.com"]

[Event "Titled Tuesday Blitz January 03 Early 2023"]
[White "Corredor Castellanos, Camilo"]
[Black "reevecanada"]
[WhiteFideId "4425871"]
[WhiteElo "1957"]
[BlackElo "2477"]
[Result "0-1"]
[Round "06"]
[TimeControl "180+2"]
[Date "2023.01.03"]
[WhiteClock "0:00:40"]
[BlackClock "0:01:29"]

1. e4 {[%clk 0:03:00]}  c5 {[%clk 0:02:52]} 2. Nf3 {[%clk 0:03:00]}  d6 {[%clk 0:02:52]} 3. d4 {[%clk 0:03:00]}  cxd4 {[%clk 0:02:52]} 4. Nxd4 {[%clk 0:03:01]}  Nf6 {[%clk 0:02:52]} 5. Nc3 {[%clk 0:03:02]}  a6 {[%clk 0:02:51]} 6. h4 {[%clk 0:03:02]}  e5 {[%clk 0:02:50]} 7. Nb3 {[%clk 0:03:01]}  Be7 {[%clk 0:02:50]} 8. Bg5 {[%clk 0:02:59]}  Be6 {[%clk 0:02:49]} 9. Qd2 {[%clk 0:02:58]}  Nbd7 {[%clk 0:02:47]} 10. O-O-O {[%clk 0:02:52]}  h6 {[%clk 0:02:46]} 11. Bxf6 {[%clk 0:02:49]}  Nxf6 {[%clk 0:02:47]} 12. f3 {[%clk 0:02:48]}  b5 {[%clk 0:02:45]} 13. Nd5 {[%clk 0:02:44]}  Nxd5 {[%clk 0:02:44]} 14. exd5 {[%clk 0:02:43]}  Bf5 {[%clk 0:02:40]} 15. Bd3 {[%clk 0:02:41]}  Bxh4 {[%clk 0:02:36]} 16. Rxh4 {[%clk 0:02:36]}  Bxd3 {[%clk 0:02:34]} 17. Rg4 {[%clk 0:02:30]}  Bg6 {[%clk 0:02:34]} 18. f4 {[%clk 0:02:29]}  Rc8 {[%clk 0:02:33]} 19. Rxg6 {[%clk 0:01:38]}  fxg6 {[%clk 0:02:30]} 20. fxe5 {[%clk 0:01:38]}  Qg5 {[%clk 0:02:25]} 21. e6 {[%clk 0:01:32]}  Qxd2+ {[%clk 0:02:22]} 22. Rxd2 {[%clk 0:01:24]}  Ke7 {[%clk 0:02:19]} 23. Nd4 {[%clk 0:01:23]}  Rhf8 {[%clk 0:02:16]} 24. b3 {[%clk 0:01:21]}  Rc5 {[%clk 0:02:13]} 25. Nc6+ {[%clk 0:01:18]}  Rxc6 {[%clk 0:02:10]} 26. dxc6 {[%clk 0:01:18]}  Rc8 {[%clk 0:02:10]} 27. Rf2 {[%clk 0:01:13]}  Kxe6 {[%clk 0:02:09]} 28. Re2+ {[%clk 0:01:14]}  Kf7 {[%clk 0:02:07]} 29. Rf2+ {[%clk 0:01:13]}  Kg8 {[%clk 0:02:07]} 30. Kd2 {[%clk 0:01:11]}  Rxc6 {[%clk 0:02:05]} 31. c3 {[%clk 0:01:07]}  Rc5 {[%clk 0:02:01]} 32. Kd3 {[%clk 0:01:07]}  Rd5+ {[%clk 0:01:56]} 33. Ke4 {[%clk 0:01:07]}  Re5+ {[%clk 0:01:56]} 34. Kd4 {[%clk 0:01:07]}  g5 {[%clk 0:01:51]} 35. Rc2 {[%clk 0:00:59]}  Kf7 {[%clk 0:01:50]} 36. Rb2 {[%clk 0:00:54]}  Rf5 {[%clk 0:01:48]} 37. g3 {[%clk 0:00:51]}  h5 {[%clk 0:01:46]} 38. a4 {[%clk 0:00:51]}  h4 {[%clk 0:01:43]} 39. axb5 {[%clk 0:00:49]}  axb5 {[%clk 0:01:39]} 40. gxh4 {[%clk 0:00:44]}  gxh4 {[%clk 0:01:40]} 41. Rh2 {[%clk 0:00:44]}  g5 {[%clk 0:01:38]} 42. Ke4 {[%clk 0:00:43]}  Ke6 {[%clk 0:01:36]} 43. c4 {[%clk 0:00:42]}  Rf4+ {[%clk 0:01:34]} 44. Kd3 {[%clk 0:00:41]}  bxc4+ {[%clk 0:01:34]} 45. bxc4 {[%clk 0:00:42]}  d5 {[%clk 0:01:33]} 46. cxd5+ {[%clk 0:00:42]}  Kxd5 {[%clk 0:01:34]} 47. Ke3 {[%clk 0:00:42]}  Ke5 {[%clk 0:01:33]} 48. Ra2 {[%clk 0:00:42]}  Kf5 {[%clk 0:01:32]} 49. Rg2 {[%clk 0:00:39]}  g4 {[%clk 0:01:30]} 50. Ra2 {[%clk 0:00:39]}  Rf3+ {[%clk 0:01:29]} 51. Ke2 {[%clk 0:00:40]}  Kf4 {[%clk 0:01:29]} 52. Ke1 {[%clk 0:00:40]}  Kg3 {[%clk 0:01:29]} 0-1


[Site "https://www.chess.com"]

[Event "Titled Tuesday Blitz January 03 Early 2023"]
[White "Jovic, Stanoje"]
[Black "Sailer, Mike"]
[WhiteFideId "905020"]
[BlackFideId "2012901"]
[WhiteElo "2075"]
[BlackElo "2109"]
[Result "1-0"]
[Round "06"]
[TimeControl "180+2"]
[Date "2023.01.03"]
[WhiteClock "0:01:11"]
[BlackClock "0:00:03"]

1. c4 {[%clk 0:03:00]}  c6 {[%clk 0:03:00]} 2. e4 {[%clk 0:02:59]}  d5 {[%clk 0:02:59]} 3. exd5 {[%clk 0:02:59]}  cxd5 {[%clk 0:03:00]} 4. cxd5 {[%clk 0:02:59]}  Nf6 {[%clk 0:03:00]} 5. Qa4+ {[%clk 0:02:59]}  Nbd7 {[%clk 0:02:56]} 6. Nc3 {[%clk 0:02:58]}  g6 {[%clk 0:02:55]} 7. Bc4 {[%clk 0:02:57]}  Bg7 {[%clk 0:02:56]} 8. d3 {[%clk 0:02:58]}  O-O {[%clk 0:02:56]} 9. Nf3 {[%clk 0:02:58]}  Nb6 {[%clk 0:02:55]} 10. Qb3 {[%clk 0:02:58]}  Bf5 {[%clk 0:02:29]} 11. O-O {[%clk 0:02:57]}  Nfd7 {[%clk 0:02:13]} 12. Be3 {[%clk 0:02:54]}  Rc8 {[%clk 0:02:12]} 13. Rfe1 {[%clk 0:02:51]}  Nc5 {[%clk 0:02:13]} 14. Bxc5 {[%clk 0:02:51]}  Rxc5 {[%clk 0:02:13]} 15. Qa3 {[%clk 0:02:51]}  Nxc4 {[%clk 0:02:01]} 16. dxc4 {[%clk 0:02:48]}  Rxc4 {[%clk 0:01:49]} 17. Qxa7 {[%clk 0:02:44]}  Bxc3 {[%clk 0:01:47]} 18. bxc3 {[%clk 0:02:44]}  Rxc3 {[%clk 0:01:40]} 19. Qxb7 {[%clk 0:02:44]}  Re8 {[%clk 0:01:34]} 20. Ne5 {[%clk 0:02:40]}  Qd6 {[%clk 0:01:15]} 21. Nc6 {[%clk 0:02:22]}  e6 {[%clk 0:01:05]} 22. Rad1 {[%clk 0:02:21]}  e5 {[%clk 0:00:38]} 23. h3 {[%clk 0:02:17]}  h5 {[%clk 0:00:37]} 24. a4 {[%clk 0:02:10]}  e4 {[%clk 0:00:35]} 25. Qb2 {[%clk 0:02:02]}  Ra3 {[%clk 0:00:21]} 26. a5 {[%clk 0:01:57]}  e3 {[%clk 0:00:22]} 27. fxe3 {[%clk 0:01:54]}  Raxe3 {[%clk 0:00:22]} 28. Rxe3 {[%clk 0:01:54]}  Rxe3 {[%clk 0:00:22]} 29. Qf2 {[%clk 0:01:50]}  Ra3 {[%clk 0:00:16]} 30. Re1 {[%clk 0:01:44]}  Kg7 {[%clk 0:00:09]} 31. Ne7 {[%clk 0:01:41]}  Rxa5 {[%clk 0:00:06]} 32. Qxf5 {[%clk 0:01:21]}  gxf5 {[%clk 0:00:05]} 33. Nxf5+ {[%clk 0:01:21]}  Kf6 {[%clk 0:00:05]} 34. Nxd6 {[%clk 0:01:21]}  Rxd5 {[%clk 0:00:06]} 35. Ne4+ {[%clk 0:01:21]}  Kf5 {[%clk 0:00:06]} 36. Ng3+ {[%clk 0:01:19]}  Kg5 {[%clk 0:00:06]} 37. Re4 {[%clk 0:01:17]}  f5 {[%clk 0:00:06]} 38. h4+ {[%clk 0:01:17]}  Kf6 {[%clk 0:00:05]} 39. Ra4 {[%clk 0:01:16]}  Ke5 {[%clk 0:00:04]} 40. Nxh5 {[%clk 0:01:14]}  f4 {[%clk 0:00:04]} 41. Nxf4 {[%clk 0:01:14]}  Rd1+ {[%clk 0:00:03]} 42. Kh2 {[%clk 0:01:14]}  Rf1 {[%clk 0:00:03]} 43. Kg3 {[%clk 0:01:13]}  Rb1 {[%clk 0:00:03]} 44. Kg4 {[%clk 0:01:11]} 1-0


[Site "https://www.chess.com"]

[Event "Titled Tuesday Blitz January 03 Early 2023"]
[White "Gutierrez Anaya, Yeison Joel"]
[Black "Moreno Perez, Tobias Sebastian"]
[WhiteFideId "3903273"]
[BlackFideId "186716"]
[WhiteElo "2125"]
[BlackElo "2256"]
[Result "1-0"]
[Round "06"]
[TimeControl "180+2"]
[Date "2023.01.03"]
[WhiteClock "0:00:10"]
[BlackClock "0:00:05"]

1. d4 {[%clk 0:03:00]}  d5 {[%clk 0:02:59]} 2. Nf3 {[%clk 0:03:01]}  Nf6 {[%clk 0:02:59]} 3. g3 {[%clk 0:02:57]}  Bf5 {[%clk 0:02:55]} 4. Bg2 {[%clk 0:02:58]}  e6 {[%clk 0:02:55]} 5. O-O {[%clk 0:02:58]}  h6 {[%clk 0:02:55]} 6. c4 {[%clk 0:02:59]}  c6 {[%clk 0:02:55]} 7. Nc3 {[%clk 0:02:58]}  Nbd7 {[%clk 0:02:55]} 8. cxd5 {[%clk 0:02:54]}  exd5 {[%clk 0:02:54]} 9. a3 {[%clk 0:02:54]}  Be7 {[%clk 0:02:54]} 10. b4 {[%clk 0:02:54]}  a6 {[%clk 0:02:53]} 11. Qb3 {[%clk 0:02:54]}  O-O {[%clk 0:02:53]} 12. Na4 {[%clk 0:02:44]}  Ne4 {[%clk 0:02:51]} 13. Nc5 {[%clk 0:02:44]}  b5 {[%clk 0:02:31]} 14. Nxe4 {[%clk 0:02:33]}  Bxe4 {[%clk 0:02:29]} 15. Bf4 {[%clk 0:02:32]}  a5 {[%clk 0:02:29]} 16. Rfc1 {[%clk 0:02:30]}  Ra6 {[%clk 0:01:50]} 17. Qc3 {[%clk 0:02:17]}  Qa8 {[%clk 0:01:33]} 18. Bc7 {[%clk 0:01:54]}  axb4 {[%clk 0:01:19]} 19. axb4 {[%clk 0:01:55]}  Rc8 {[%clk 0:01:19]} 20. Rxa6 {[%clk 0:01:27]}  Qxa6 {[%clk 0:01:16]} 21. Ba5 {[%clk 0:01:28]}  Bf6 {[%clk 0:01:09]} 22. e3 {[%clk 0:01:25]}  Be7 {[%clk 0:00:38]} 23. h4 {[%clk 0:00:47]}  h5 {[%clk 0:00:14]} 24. Kh2 {[%clk 0:00:24]}  g6 {[%clk 0:00:11]} 25. Bh3 {[%clk 0:00:22]}  f5 {[%clk 0:00:11]} 26. Nd2 {[%clk 0:00:20]}  c5 {[%clk 0:00:03]} 27. bxc5 {[%clk 0:00:17]}  b4 {[%clk 0:00:04]} 28. Bxb4 {[%clk 0:00:16]}  Qe2 {[%clk 0:00:04]} 29. Kg1 {[%clk 0:00:14]}  f4 {[%clk 0:00:02]} 30. Bf1 {[%clk 0:00:14]}  Qg4 {[%clk 0:00:01]} 31. exf4 {[%clk 0:00:14]}  Bxh4 {[%clk 0:00:01]} 32. Nxe4 {[%clk 0:00:14]}  dxe4 {[%clk 0:00:01]} 33. Bc4+ {[%clk 0:00:14]}  Kg7 {[%clk 0:00:01]} 34. d5+ {[%clk 0:00:15]}  Bf6 {[%clk 0:00:02]} 35. Qe3 {[%clk 0:00:14]}  h4 {[%clk 0:00:02]} 36. c6 {[%clk 0:00:12]}  h3 {[%clk 0:00:03]} 37. Kh2 {[%clk 0:00:10]}  Qf3 {[%clk 0:00:03]} 38. Qxf3 {[%clk 0:00:10]}  exf3 {[%clk 0:00:04]} 39. cxd7 {[%clk 0:00:10]}  Rd8 {[%clk 0:00:04]} 40. Bb5 {[%clk 0:00:10]}  Bd4 {[%clk 0:00:04]} 41. Ba5 {[%clk 0:00:10]}  Bb6 {[%clk 0:00:04]} 42. Bxb6 {[%clk 0:00:10]}  Rxd7 {[%clk 0:00:05]} 43. Bxd7 {[%clk 0:00:10]} 1-0


[Site "https://www.chess.com"]

[Event "Titled Tuesday Blitz January 03 Early 2023"]
[White "Turzo, Attila"]
[Black "Wilson, Elvin"]
[WhiteFideId "704954"]
[BlackFideId "2014874"]
[WhiteElo "2279"]
[BlackElo "2183"]
[Result "1-0"]
[Round "06"]
[TimeControl "180+2"]
[Date "2023.01.03"]
[WhiteClock "0:01:05"]
[BlackClock "0:00:03"]

1. d4 {[%clk 0:03:00]}  Nf6 {[%clk 0:02:57]} 2. Bf4 {[%clk 0:03:00]}  e6 {[%clk 0:02:57]} 3. Nf3 {[%clk 0:02:58]}  d5 {[%clk 0:02:55]} 4. e3 {[%clk 0:02:58]}  Bd6 {[%clk 0:02:55]} 5. Bg3 {[%clk 0:02:58]}  O-O {[%clk 0:02:53]} 6. Nbd2 {[%clk 0:02:57]}  b6 {[%clk 0:02:53]} 7. c4 {[%clk 0:02:51]}  Bb7 {[%clk 0:02:52]} 8. Rc1 {[%clk 0:02:49]}  Nbd7 {[%clk 0:02:41]} 9. Bxd6 {[%clk 0:02:42]}  cxd6 {[%clk 0:02:41]} 10. Be2 {[%clk 0:02:42]}  Rc8 {[%clk 0:02:38]} 11. O-O {[%clk 0:02:42]}  Qe7 {[%clk 0:02:35]} 12. Qa4 {[%clk 0:02:41]}  a6 {[%clk 0:02:16]} 13. Qa3 {[%clk 0:02:37]}  Rfe8 {[%clk 0:02:03]} 14. cxd5 {[%clk 0:02:19]}  exd5 {[%clk 0:01:54]} 15. Qb4 {[%clk 0:02:10]}  Ne4 {[%clk 0:01:43]} 16. Nxe4 {[%clk 0:01:43]}  dxe4 {[%clk 0:01:40]} 17. Nd2 {[%clk 0:01:44]}  Rxc1 {[%clk 0:01:13]} 18. Rxc1 {[%clk 0:01:42]}  Rc8 {[%clk 0:01:13]} 19. Rxc8+ {[%clk 0:01:40]}  Bxc8 {[%clk 0:01:13]} 20. Nc4 {[%clk 0:01:41]}  b5 {[%clk 0:00:49]} 21. Qxd6 {[%clk 0:01:37]}  Kf8 {[%clk 0:00:39]} 22. Qc7 {[%clk 0:01:25]}  bxc4 {[%clk 0:00:32]} 23. Qxc8+ {[%clk 0:01:23]}  Qe8 {[%clk 0:00:32]} 24. Qxe8+ {[%clk 0:01:21]}  Kxe8 {[%clk 0:00:33]} 25. Bxc4 {[%clk 0:01:22]}  Nb8 {[%clk 0:00:32]} 26. b4 {[%clk 0:01:18]}  f6 {[%clk 0:00:28]} 27. Bg8 {[%clk 0:01:10]}  h6 {[%clk 0:00:24]} 28. Bh7 {[%clk 0:01:10]}  Nc6 {[%clk 0:00:22]} 29. a3 {[%clk 0:01:09]}  Ke7 {[%clk 0:00:15]} 30. Bxe4 {[%clk 0:01:09]}  Na7 {[%clk 0:00:16]} 31. Bd3 {[%clk 0:01:08]}  Kd6 {[%clk 0:00:17]} 32. Bxa6 {[%clk 0:01:08]}  Nc6 {[%clk 0:00:03]} 33. Kf1 {[%clk 0:01:05]} 1-0


[Site "https://www.chess.com"]

[Event "Titled Tuesday Blitz January 03 Early 2023"]
[White "Dushyant Sharma"]
[Black "Nathan, Nitish"]
[WhiteFideId "25065130"]
[BlackFideId "30927870"]
[WhiteElo "2355"]
[BlackElo "2071"]
[Result "0-1"]
[Round "06"]
[TimeControl "180+2"]
[Date "2023.01.03"]
[WhiteClock "0:00:11"]
[BlackClock "0:00:52"]

1. e4 {[%clk 0:02:58]}  c5 {[%clk 0:02:58]} 2. Nf3 {[%clk 0:02:47]}  Nc6 {[%clk 0:02:59]} 3. d4 {[%clk 0:02:48]}  cxd4 {[%clk 0:03:00]} 4. Nxd4 {[%clk 0:02:49]}  e5 {[%clk 0:03:00]} 5. Nxc6 {[%clk 0:02:44]}  bxc6 {[%clk 0:03:00]} 6. Nc3 {[%clk 0:02:44]}  Bb4 {[%clk 0:02:59]} 7. Bd3 {[%clk 0:02:45]}  Nf6 {[%clk 0:02:55]} 8. O-O {[%clk 0:02:43]}  O-O {[%clk 0:02:53]} 9. Kh1 {[%clk 0:02:40]}  d5 {[%clk 0:02:51]} 10. f4 {[%clk 0:02:38]}  Bxc3 {[%clk 0:02:50]} 11. bxc3 {[%clk 0:02:36]}  dxe4 {[%clk 0:02:49]} 12. fxe5 {[%clk 0:02:36]}  exd3 {[%clk 0:02:48]} 13. exf6 {[%clk 0:02:37]}  dxc2 {[%clk 0:02:48]} 14. Qxc2 {[%clk 0:02:31]}  Ba6 {[%clk 0:02:47]} 15. Rf2 {[%clk 0:02:24]}  Re8 {[%clk 0:02:38]} 16. Ba3 {[%clk 0:02:22]}  Qd3 {[%clk 0:02:33]} 17. Qa4 {[%clk 0:01:57]}  Qxc3 {[%clk 0:02:29]} 18. Rg1 {[%clk 0:01:26]}  Qc4 {[%clk 0:02:25]} 19. Qa5 {[%clk 0:01:21]}  Qb5 {[%clk 0:02:16]} 20. Qc3 {[%clk 0:01:18]}  Qd3 {[%clk 0:02:16]} 21. Qxc6 {[%clk 0:01:16]}  Qxa3 {[%clk 0:02:11]} 22. fxg7 {[%clk 0:01:16]}  Rad8 {[%clk 0:01:42]} 23. Rf3 {[%clk 0:00:45]}  Qd6 {[%clk 0:01:39]} 24. Qa4 {[%clk 0:00:32]}  Bb7 {[%clk 0:01:34]} 25. Rg3 {[%clk 0:00:27]}  a6 {[%clk 0:01:27]} 26. Qh4 {[%clk 0:00:26]}  Qd4 {[%clk 0:01:21]} 27. Rg4 {[%clk 0:00:24]}  Qe3 {[%clk 0:01:12]} 28. h3 {[%clk 0:00:22]}  Rd2 {[%clk 0:01:09]} 29. Rg3 {[%clk 0:00:21]}  Qe2 {[%clk 0:01:03]} 30. Kh2 {[%clk 0:00:17]}  Qe4 {[%clk 0:00:58]} 31. Qh6 {[%clk 0:00:14]}  Rd3 {[%clk 0:00:54]} 32. Rg4 {[%clk 0:00:10]}  Qe5+ {[%clk 0:00:53]} 33. Kh1 {[%clk 0:00:11]}  Qf6 {[%clk 0:00:52]} 34. Qxf6 {[%clk 0:00:11]}  Rxh3# {[%clk 0:00:52]} 0-1


[Site "https://www.chess.com"]

[Event "Titled Tuesday Blitz January 03 Early 2023"]
[White "Guliev, Logman"]
[Black "Bashirli, Saadat"]
[WhiteFideId "13400061"]
[BlackFideId "13429990"]
[WhiteElo "2250"]
[BlackElo "1571"]
[Result "1-0"]
[Round "06"]
[TimeControl "180+2"]
[Date "2023.01.03"]
[WhiteClock "0:01:42"]
[BlackClock "0:01:50"]

1. e4 {[%clk 0:03:00]}  c5 {[%clk 0:02:55]} 2. Nf3 {[%clk 0:03:00]}  g6 {[%clk 0:02:54]} 3. c3 {[%clk 0:02:59]}  Nf6 {[%clk 0:02:52]} 4. e5 {[%clk 0:02:58]}  Nd5 {[%clk 0:02:51]} 5. d4 {[%clk 0:02:59]}  cxd4 {[%clk 0:02:52]} 6. cxd4 {[%clk 0:02:58]}  d6 {[%clk 0:02:51]} 7. Nc3 {[%clk 0:02:58]}  Nxc3 {[%clk 0:02:50]} 8. bxc3 {[%clk 0:02:59]}  dxe5 {[%clk 0:02:50]} 9. Nxe5 {[%clk 0:02:58]}  Bg7 {[%clk 0:02:50]} 10. Bb5+ {[%clk 0:02:56]}  Bd7 {[%clk 0:02:50]} 11. Nxd7 {[%clk 0:02:55]}  Nxd7 {[%clk 0:02:51]} 12. O-O {[%clk 0:02:55]}  O-O {[%clk 0:02:51]} 13. Qf3 {[%clk 0:02:53]}  Qc8 {[%clk 0:02:34]} 14. Bg5 {[%clk 0:02:41]}  e5 {[%clk 0:02:28]} 15. d5 {[%clk 0:02:30]}  f6 {[%clk 0:02:23]} 16. Be3 {[%clk 0:02:24]}  Nc5 {[%clk 0:02:22]} 17. Rfd1 {[%clk 0:02:14]}  Rd8 {[%clk 0:02:20]} 18. d6 {[%clk 0:02:11]}  Ne6 {[%clk 0:02:11]} 19. d7 {[%clk 0:02:05]}  Qc7 {[%clk 0:02:07]} 20. Qd5 {[%clk 0:02:04]}  Kf7 {[%clk 0:02:07]} 21. Bc4 {[%clk 0:01:50]}  Qc6 {[%clk 0:02:06]} 22. Qxc6 {[%clk 0:01:51]}  bxc6 {[%clk 0:02:07]} 23. Rd6 {[%clk 0:01:50]}  Ke7 {[%clk 0:01:54]} 24. Rxe6+ {[%clk 0:01:49]}  Kxd7 {[%clk 0:01:55]} 25. Rd1+ {[%clk 0:01:45]}  Kc8 {[%clk 0:01:51]} 26. Ba6+ {[%clk 0:01:44]}  Kc7 {[%clk 0:01:50]} 27. Re7+ {[%clk 0:01:43]}  Kb8 {[%clk 0:01:50]} 28. Rxd8# {[%clk 0:01:42]} 1-0


[Site "https://www.chess.com"]

[Event "Titled Tuesday Blitz January 03 Early 2023"]
[White "Liu, Kelsey"]
[Black "Sreyas Payyappat"]
[WhiteFideId "30944481"]
[BlackFideId "46674969"]
[WhiteElo "2065"]
[BlackElo "2076"]
[Result "0-1"]
[Round "06"]
[TimeControl "180+2"]
[Date "2023.01.03"]
[WhiteClock "0:00:05"]
[BlackClock "0:00:59"]

1. e4 {[%clk 0:02:59]}  c6 {[%clk 0:02:59]} 2. d4 {[%clk 0:02:59]}  d5 {[%clk 0:02:59]} 3. e5 {[%clk 0:02:59]}  Bf5 {[%clk 0:02:57]} 4. Nc3 {[%clk 0:03:00]}  e6 {[%clk 0:02:57]} 5. g4 {[%clk 0:03:00]}  Bg6 {[%clk 0:02:57]} 6. Nge2 {[%clk 0:03:01]}  c5 {[%clk 0:02:55]} 7. h4 {[%clk 0:03:00]}  cxd4 {[%clk 0:02:55]} 8. Nxd4 {[%clk 0:02:40]}  h5 {[%clk 0:02:52]} 9. f4 {[%clk 0:02:41]}  hxg4 {[%clk 0:02:46]} 10. Bb5+ {[%clk 0:02:41]}  Nd7 {[%clk 0:02:45]} 11. f5 {[%clk 0:02:41]}  Rxh4 {[%clk 0:02:39]} 12. Rf1 {[%clk 0:02:31]}  Rh2 {[%clk 0:02:27]} 13. Qxg4 {[%clk 0:02:26]}  exf5 {[%clk 0:02:20]} 14. Nxf5 {[%clk 0:02:17]}  Bxf5 {[%clk 0:02:18]} 15. Qxf5 {[%clk 0:02:17]}  Qh4+ {[%clk 0:02:15]} 16. Kd1 {[%clk 0:02:17]}  O-O-O {[%clk 0:02:10]} 17. Bg5 {[%clk 0:01:47]}  Qd4+ {[%clk 0:02:07]} 18. Bd3 {[%clk 0:01:48]}  Be7 {[%clk 0:01:56]} 19. Nb5 {[%clk 0:01:31]}  Qxb2 {[%clk 0:01:39]} 20. Rc1 {[%clk 0:01:10]}  Bxg5 {[%clk 0:01:35]} 21. Nd6+ {[%clk 0:01:06]}  Kc7 {[%clk 0:01:28]} 22. Qxg5 {[%clk 0:01:06]}  f6 {[%clk 0:01:21]} 23. Nb5+ {[%clk 0:00:21]}  Kc8 {[%clk 0:01:13]} 24. Nd6+ {[%clk 0:00:17]}  Kb8 {[%clk 0:01:11]} 25. Qg3 {[%clk 0:00:13]}  Qxe5 {[%clk 0:01:10]} 26. Qxe5 {[%clk 0:00:11]}  Nxe5 {[%clk 0:01:10]} 27. Nf5 {[%clk 0:00:10]}  Ng4 {[%clk 0:01:05]} 28. Rb1 {[%clk 0:00:09]}  N8h6 {[%clk 0:01:02]} 29. Kc1 {[%clk 0:00:05]}  Nxf5 {[%clk 0:01:01]} 30. Rxf5 {[%clk 0:00:05]}  Ne3 {[%clk 0:00:59]} 31. Kb2 {[%clk 0:00:05]} 0-1


[Site "https://www.chess.com"]

[Event "Titled Tuesday Blitz January 03 Early 2023"]
[White "Miszler, Levente"]
[Black "Ciuffoletti, Paolo"]
[WhiteFideId "763276"]
[BlackFideId "807630"]
[WhiteElo "2271"]
[BlackElo "2106"]
[Result "1/2-1/2"]
[Round "06"]
[TimeControl "180+2"]
[Date "2023.01.03"]
[WhiteClock "0:00:22"]
[BlackClock "0:00:19"]

1. e4 {[%clk 0:03:00]}  c5 {[%clk 0:02:59]} 2. Nc3 {[%clk 0:02:59]}  Nc6 {[%clk 0:02:59]} 3. g3 {[%clk 0:02:57]}  g6 {[%clk 0:02:58]} 4. Bg2 {[%clk 0:02:57]}  Bg7 {[%clk 0:02:59]} 5. f4 {[%clk 0:02:57]}  d6 {[%clk 0:02:59]} 6. Nf3 {[%clk 0:02:57]}  e6 {[%clk 0:02:58]} 7. O-O {[%clk 0:02:58]}  Nge7 {[%clk 0:02:58]} 8. d3 {[%clk 0:02:58]}  Nd4 {[%clk 0:02:57]} 9. Ne2 {[%clk 0:02:56]}  Nec6 {[%clk 0:02:52]} 10. c3 {[%clk 0:02:56]}  Nxe2+ {[%clk 0:02:51]} 11. Qxe2 {[%clk 0:02:57]}  Rb8 {[%clk 0:02:51]} 12. a4 {[%clk 0:02:52]}  a6 {[%clk 0:02:49]} 13. Nh4 {[%clk 0:02:47]}  b5 {[%clk 0:02:39]} 14. axb5 {[%clk 0:02:46]}  axb5 {[%clk 0:02:38]} 15. f5 {[%clk 0:02:46]}  Bf6 {[%clk 0:02:22]} 16. fxe6 {[%clk 0:02:28]}  Bxe6 {[%clk 0:02:15]} 17. Nf3 {[%clk 0:01:51]}  O-O {[%clk 0:02:09]} 18. Ra6 {[%clk 0:01:50]}  Qc8 {[%clk 0:02:02]} 19. Rxc6 {[%clk 0:01:42]}  Qxc6 {[%clk 0:02:01]} 20. e5 {[%clk 0:01:42]}  Bg7 {[%clk 0:01:20]} 21. Ng5 {[%clk 0:01:37]}  Bd5 {[%clk 0:01:17]} 22. exd6 {[%clk 0:01:25]}  Bxg2 {[%clk 0:01:14]} 23. Qxg2 {[%clk 0:01:26]}  Qxd6 {[%clk 0:01:13]} 24. Bf4 {[%clk 0:01:24]}  Be5 {[%clk 0:01:02]} 25. Ne4 {[%clk 0:01:17]}  Qe7 {[%clk 0:00:59]} 26. Bxe5 {[%clk 0:01:09]}  Qxe5 {[%clk 0:00:57]} 27. Nf6+ {[%clk 0:01:10]}  Kg7 {[%clk 0:00:52]} 28. Nd7 {[%clk 0:01:11]}  Qe3+ {[%clk 0:00:50]} 29. Qf2 {[%clk 0:01:10]}  Qe6 {[%clk 0:00:38]} 30. Nxb8 {[%clk 0:01:03]}  Rxb8 {[%clk 0:00:37]} 31. Qxc5 {[%clk 0:01:03]}  Rd8 {[%clk 0:00:31]} 32. d4 {[%clk 0:00:59]}  Rd5 {[%clk 0:00:27]} 33. Qc7 {[%clk 0:00:43]}  Qe3+ {[%clk 0:00:26]} 34. Kg2 {[%clk 0:00:43]}  Qe4+ {[%clk 0:00:20]} 35. Kg1 {[%clk 0:00:28]}  Qe3+ {[%clk 0:00:20]} 36. Kg2 {[%clk 0:00:23]}  Qe4+ {[%clk 0:00:20]} 37. Kg1 {[%clk 0:00:22]}  Qe3+ {[%clk 0:00:19]} 1/2-1/2


[Site "https://www.chess.com"]